bitfinex-derivatives/quotes_SOLF0:USTF0_20241107
["timestamp","ask_amount","ask_price","bid_price","bid_amount"]
[1731013020382,2.5328,197.12,197.07,2.5333]
[1731013021877,3.5871,197.19,197.08,12.16461108]
[1731013022993,2.5325,197.15,197.1,2.5329]
[1731013023385,2.5325,197.15,197.09,2.5251406]
[1731013023589,2.5325,197.15,197.11,2.5328]
[1731013023995,2.5325,197.15,197.08,12.16461108]
[1731013024195,2.5325,197.15,197.1,2.533]
[1731013024395,2.5325,197.15,197.08,14.68164204]
[1731013024900,2.5325,197.15,197.1,2.533]
[1731013025101,3.5871,197.19,197.1,12.16461108]
[1731013025300,2.5322,197.17,197.1,12.16461108]
[1731013025495,41.89535745,197.21,197.13,12.16461108]
[1731013026289,14.56481108,197.25,197.15,2.5323]
[1731013026695,2.5318,197.2,197.15,2.5323]
[1731013027495,2.5319,197.19,197.15,2.5323]
[1731013028895,2.532,197.18,197.13,17.17333905]
[1731013029103,2.532,197.18,197.13,14.64083905]
[1731013029298,12.16461108,197.23,197.13,14.64083905]
[1731013029599,2.4002,197.25,197.13,14.64083905]
[1731013029798,2.4002,197.25,197.16,12.16461108]
[1731013029995,2.5316,197.22,197.16,14.69681108]
[1731013030397,2.4002,197.25,197.16,12.16461108]
[1731013030704,2.5313,197.23,197.18,2.5319]
[1731013030905,2.5313,197.23,197.18,8.19300082]
[1731013031201,1.1651,197.28,197.19,2.5318]
[1731013031699,2.5312,197.25,197.19,2.5318]
[1731013031899,2.5312,197.25,197.2,2.58679597]
[1731013032500,12.16461108,197.3,197.2,2.5317]
[1731013032709,2.531,197.26,197.2,2.5317]
[1731013032907,2.531,197.26,197.2,2.50371861]
[1731013033200,2.3592,197.32,197.22,2.5314]
[1731013033394,2.5306,197.29,197.22,2.5314]
[1731013033595,2.3592,197.32,197.22,2.5314]
[1731013033903,2.5309,197.27,197.22,2.5314]
[1731013034103,2.5309,197.27,197.21,12.16461108]
[1731013034303,2.5309,197.27,197.21,2.5316]
[1731013034606,12.16461108,197.3,197.21,2.5316]
[1731013034802,12.16461108,197.3,197.08,15.21]
[1731013034997,12.16461108,197.3,197.18,14.69651108]
[1731013035310,2.5313,197.24,197.19,3.1]
[1731013035601,12.16461108,197.3,197.19,3.1]
[1731013035996,12.16461108,197.27,197.2,3.1]
[1731013036397,12.16461108,197.27,197.16,12.16461108]
[1731013036604,2.5316,197.21,197.17,3.1]
[1731013036808,2.5316,197.21,197.18,2.52043135]
[1731013037502,12.16461108,197.27,197.16,12.16461108]
[1731013037712,2.5319,197.19,197.17,3.1]
[1731013039409,2.4706,197.24,197.17,3.1]
[1731013039718,2.4706,197.24,197.16,2.57805689]
[1731013040013,2.4706,197.24,197.16,14.74266797]
[1731013040209,2.5319,197.19,197.16,2.57805689]
[1731013040409,2.4706,197.24,197.15,3.1]
[1731013040608,2.4706,197.24,197.15,5.62816228]
[1731013040809,2.532,197.19,197.15,5.62816228]
[1731013042014,2.532,197.18,197.15,5.62816228]
[1731013042209,12.16461108,197.22,197.09,12.16461108]
[1731013042507,15.21,197.35,196.99,5.29472176]
[1731013042508,2.5304,197.31,197.24,2.5312]
[1731013042712,12.16461108,197.38,197.25,15.26461108]
[1731013042908,2.5303,197.32,197.25,15.26461108]
[1731013043412,12.16461108,197.38,197.25,17.79561108]
[1731013043614,12.16461108,197.4,197.28,12.16461108]
[1731013044014,2.5296,197.37,197.28,12.16461108]
[1731013044209,3.1,197.43,197.25,3.1]
[1731013044210,77.61251986,197.44,197.31,12.16461108]
[1731013044520,77.61251986,197.44,197.32,3.1]
[1731013045214,12.16461108,197.42,197.32,3.1]
[1731013045515,2.5297,197.37,197.32,3.1]
[1731013046308,2.5298,197.35,197.31,3.1]
[1731013049811,2.4451,197.38,197.31,3.1]
[1731013050417,2.5297,197.36,197.29,12.16461108]
[1731013050613,2.4451,197.38,197.31,3.1]
[1731013050918,2.5299,197.34,197.31,3.1]
[1731013051105,12.16461108,197.34,197.11,15.21]
[1731013051305,12.16461108,197.32,197.21,12.16461108]
[1731013051515,12.16461108,197.32,197.21,14.71350962]
[1731013051710,2.531,197.26,197.21,14.69611108]
[1731013052108,2.5312,197.24,197.21,12.16461108]
[1731013052416,2.5312,197.24,197.2,3.1]
[1731013052417,12.16461108,197.32,197.2,3.1]
[1731013052717,2.5306,197.29,197.21,14.69611108]
[1731013052915,12.16461108,197.32,197.21,14.69611108]
[1731013053614,2.5309,197.27,197.21,14.69611108]
[1731013053817,12.16461108,197.32,197.21,14.69611108]
[1731013054015,12.16461108,197.32,197.21,12.16461108]
[1731013054213,2.5309,197.27,197.21,12.16461108]
[1731013054621,13.34861108,197.33,197.21,12.16461108]
[1731013054811,13.34861108,197.33,197.23,2.5313]
[1731013055015,2.5308,197.28,197.23,2.5313]
[1731013055215,13.34861108,197.33,197.23,2.5313]
[1731013056013,13.34861108,197.33,197.21,12.16461108]
[1731013056213,13.34861108,197.33,197.22,2.5314]
[1731013056614,2.5308,197.28,197.22,2.5314]
[1731013056810,13.34861108,197.33,197.22,2.5314]
[1731013057014,13.34861108,197.33,197.23,2.5313]
[1731013057218,12.16461108,197.3,197.17,2.47726614]
[1731013057419,2.5318,197.2,197.14,12.16461108]
[1731013057926,12.16461108,197.27,197.14,12.16461108]
[1731013058119,2.5316,197.21,197.16,2.5322]
[1731013058319,3.08,197.26,197.17,2.47826628]
[1731013058826,17.62751108,197.29,197.16,15.24461108]
[1731013059319,17.62751108,197.29,197.17,2.46940266]
[1731013060218,17.62751108,197.29,197.16,15.24461108]
[1731013061019,2.5316,197.22,197.17,2.5321]
[1731013061215,17.62751108,197.29,197.16,15.24461108]
[1731013061527,17.62751108,197.29,197.18,2.5319]
[1731013061528,2.5315,197.22,197.18,2.5319]
[1731013062427,2.5315,197.22,197.17,2.5321]
[1731013063328,17.62751108,197.29,197.16,15.24461108]
[1731013063626,2.5317,197.21,197.16,12.16461108]
[1731013064822,2.5317,197.21,197.17,2.5321]
[1731013065026,12.16461108,197.25,197.14,3.1]
[1731013065333,2.5318,197.2,197.15,2.5322]
[1731013065629,12.16461108,197.25,197.14,3.1]
[1731013065831,2.5317,197.21,197.16,2.5321]
[1731013067124,12.16461108,197.28,197.16,12.16461108]
[1731013067723,2.5313,197.24,197.18,2.5319]
[1731013067918,2.5313,197.24,197.18,2.53335665]
[1731013068118,2.5313,197.24,197.17,12.16461108]
[1731013068430,2.5314,197.23,197.18,2.532]
[1731013068819,2.5314,197.23,197.18,5.07472913]
[1731013071130,12.16461108,197.26,197.14,12.16461108]
[1731013071434,1.216,197.25,197.14,12.16461108]
[1731013072224,1.216,197.25,197.16,12.16461108]
[1731013072631,2.5311,197.26,197.2,2.5316]
[1731013072827,2.5311,197.26,197.21,2.47256785]
[1731013073425,2.5311,197.26,197.19,12.16461108]
[1731013073624,2.5311,197.26,197.21,2.5315]
[1731013074529,2.3829,197.29,197.22,12.16461108]
[1731013075631,16.51431108,197.34,197.19,20.90273688]
[1731013075632,2.5304,197.31,197.24,14.69571108]
[1731013075834,2.5304,197.31,197.24,12.16461108]
[1731013076226,2.5305,197.3,197.25,2.531]
[1731013076737,2.5303,197.31,197.25,2.531]
[1731013077128,13.41431108,197.34,197.25,2.531]
[1731013077334,2.5305,197.3,197.25,2.531]
[1731013080639,13.41431108,197.34,197.25,2.531]
[1731013080640,2.5306,197.29,197.25,2.531]
[1731013080831,2.5306,197.29,197.24,3.1]
[1731013081032,2.5308,197.27,197.24,3.1]
[1731013081635,13.41431108,197.34,197.24,3.1]
[1731013082835,2.5312,197.24,197.21,38.09579284]
[1731013083340,12.16461108,197.29,197.21,38.09579284]
[1731013083639,2.5314,197.23,197.19,14.75734796]
[1731013083840,12.16461108,197.29,197.18,3.08]
[1731013084049,5.6113,197.3,197.16,12.16461108]
[1731013084050,12.16461108,197.26,197.16,12.16461108]
[1731013084344,12.16461108,197.28,197.14,18.29]
[1731013084547,12.16461108,197.28,197.16,12.16461108]
[1731013084843,2.5313,197.24,197.18,14.69651108]
[1731013085055,2.5313,197.24,197.18,14.68580132]
[1731013085238,12.16461108,197.28,197.16,12.16461108]
[1731013085437,12.16461108,197.25,197.16,12.16461108]
[1731013085847,2.5317,197.2,197.16,12.16461108]
[1731013086539,2.5318,197.2,197.14,5.6124]
[1731013087845,2.5319,197.19,197.14,5.6124]
[1731013088542,2.5318,197.2,197.15,2.5323]
[1731013089542,12.16461108,197.25,197.15,2.5323]
[1731013090250,2.5319,197.19,197.15,2.5323]
[1731013090550,2.5319,197.19,197.14,2.5325]
[1731013091749,12.16461108,197.25,197.13,3.08]
[1731013091947,12.16461108,197.23,197.12,2.5327]
[1731013092142,2.4725,197.22,197.12,2.5327]
[1731013092348,2.5322,197.17,197.12,2.5327]
[1731013093740,44.11618484,197.29,197.15,12.16461108]
[1731013093952,59.36079592,197.29,197.18,12.16461108]
[1731013094146,59.36079592,197.29,197.19,2.49067297]
[1731013094550,2.5314,197.23,197.19,2.49067297]
[1731013097146,59.36079592,197.29,197.19,5.02247297]
[1731013097453,56.28079592,197.29,197.19,5.02247297]
[1731013097762,56.28079592,197.29,197.19,2.49067297]
[1731013097956,2.531,197.22,197.19,2.49067297]
[1731013098254,56.28079592,197.29,197.19,2.49067297]
[1731013098451,56.28079592,197.29,197.18,12.16461108]
[1731013099160,56.28079592,197.29,197.18,14.66415617]
[1731013099355,2.5306,197.25,197.21,2.5311]
[1731013099652,56.28079592,197.29,197.18,14.66415617]
[1731013099860,44.11618484,197.29,197.21,12.16461108]
[1731013100056,2.5304,197.27,197.21,12.16461108]
[1731013100652,2.5304,197.27,197.21,2.52942518]
[1731013100959,56.28079592,197.29,197.16,3.08]
[1731013101154,56.28079592,197.29,197.18,12.16461108]
[1731013101352,2.5308,197.24,197.18,14.72568889]
[1731013101754,2.5308,197.24,197.2,2.5311]
[1731013102456,2.5305,197.26,197.22,2.5309]
[1731013102662,2.5305,197.26,197.18,14.72568889]
[1731013103163,2.5306,197.25,197.2,2.5312]
[1731013103856,56.28079592,197.29,197.18,14.72568889]
[1731013104066,2.5307,197.24,197.19,2.5313]
[1731013104361,2.5307,197.24,197.18,14.72568889]
[1731013104550,2.5307,197.24,197.2,2.5311]
[1731013105057,2.5307,197.24,197.18,14.72568889]
[1731013107861,2.5307,197.24,197.2,2.5311]
[1731013108868,56.28079592,197.29,197.2,2.5311]
[1731013109563,2.5308,197.23,197.18,8.17237781]
[1731013111565,2.531,197.22,197.18,8.17247781]
[1731013111758,56.28079592,197.29,197.18,8.17247781]
[1731013111965,56.28079592,197.29,197.18,5.64107781]
[1731013112362,13.37731108,197.29,197.18,5.64107781]
[1731013113260,7.77485751,197.26,197.2,7.77485751]
[1731013113467,2.5307,197.25,197.22,7.77485751]
[1731013113969,7.77485751,197.27,197.22,7.77485751]
[1731013113970,2.5307,197.24,197.22,7.77485751]
[1731013114575,1.2127,197.29,197.22,7.77485751]
[1731013115075,2.4671,197.3,197.24,7.77485751]
[1731013115076,10.24195751,197.3,197.24,7.77485751]
[1731013116474,2.5302,197.27,197.24,7.77485751]
[1731013117973,10.24195751,197.3,197.18,5.64107781]
[1731013117974,7.77485751,197.28,197.18,5.64107781]
[1731013118173,7.77485751,197.26,197.19,7.77485751]
[1731013118369,7.77485751,197.24,197.19,7.77485751]
[1731013118977,2.531,197.21,197.19,7.77485751]
[1731013119476,2.5307,197.23,197.19,7.77485751]
[1731013119668,7.77485751,197.25,197.19,7.77485751]
[1731013120981,2.5308,197.23,197.19,10.30605751]
[1731013121477,7.77485751,197.2,197.14,7.77485751]
[1731013121976,2.5315,197.18,197.14,7.77485751]
[1731013122170,7.77485751,197.2,197.14,7.77485751]
[1731013122369,7.77485751,197.18,197.14,7.77485751]
[1731013122774,2.5316,197.17,197.14,7.77485751]
[1731013122976,7.77485751,197.17,197.13,7.77485751]
[1731013123181,4.3127,197.28,197.11,7.77485751]
[1731013123182,7.77485751,197.16,197.11,7.77485751]
[1731013123376,2.5318,197.16,197.1,5.6124]
[1731013123683,2.5318,197.16,197.1,5.56751666]
[1731013124185,2.5318,197.16,197.11,2.5323]
[1731013124985,2.5319,197.15,197.1,5.56751666]
[1731013125379,2.5319,197.15,197.1,2.48751666]
[1731013125580,2.5319,197.15,197.1,2.5324]
[1731013126278,2.5319,197.15,197.11,2.48688545]
[1731013126778,2.5319,197.15,197.11,2.5324]
[1731013126975,2.5319,197.15,197.11,5.08285692]
[1731013127583,1.1697,197.2,197.11,5.08285692]
[1731013127883,2.5318,197.16,197.11,5.08285692]
[1731013128089,2.5318,197.16,197.11,2.55045692]
[1731013128379,13.32900138,197.2,197.11,12.15930138]
[1731013128588,1.1697,197.2,197.11,14.67949676]
[1731013128779,3.701,197.2,197.14,2.532]
[1731013128979,1.1697,197.2,197.14,12.15930138]
[1731013129286,2.4956,197.21,197.11,2.52019538]
[1731013129287,2.4956,197.21,197.17,2.5317]
[1731013129889,2.4956,197.21,197.14,12.15930138]
[1731013130082,2.4956,197.21,197.16,2.5315]
[1731013130284,2.4956,197.21,197.17,2.50043907]
[1731013130682,2.4956,197.21,197.17,5.03183907]
[1731013130881,2.4956,197.21,197.17,2.5314]
[1731013131491,2.5311,197.2,197.15,5.01228103]
[1731013132187,2.5313,197.19,197.15,5.01228103]
[1731013132486,2.4956,197.21,197.14,5.6118]
[1731013132886,2.5312,197.19,197.14,8.09400059]
[1731013133790,2.5312,197.19,197.14,3.08]
[1731013134093,2.4956,197.21,197.11,39.33978323]
[1731013134386,2.5316,197.16,197.11,41.87198323]
[1731013134590,2.4956,197.21,197.11,39.33978323]
[1731013135386,2.5313,197.18,197.13,2.5319]
[1731013135590,2.5313,197.18,197.11,39.33978323]
[1731013135789,2.4956,197.21,197.13,12.15930138]
[1731013136599,2.5312,197.19,197.14,2.5317]
[1731013137297,2.5312,197.19,197.13,12.15930138]
[1731013137492,2.5312,197.19,197.15,2.5316]
[1731013138799,2.5311,197.2,197.15,2.5316]
[1731013139700,2.531,197.21,197.16,2.5315]
[1731013139998,1.1679,197.25,197.16,12.15930138]
[1731013140498,2.4247,197.27,197.18,12.15930138]
[1731013141405,2.5307,197.24,197.2,2.5311]
[1731013142700,44.54788662,197.28,197.21,12.15930138]
[1731013142903,1.2046,197.31,197.23,12.15930138]
[1731013143203,1.2046,197.31,197.25,2.5303]
[1731013143401,1.2046,197.31,197.24,5.62436357]
[1731013143598,6.4710322,197.36,197.26,12.15930138]
[1731013143793,2.4509,197.38,197.29,12.15930138]
[1731013143989,2.4509,197.38,197.31,12.15930138]
[1731013144193,1.2857,197.42,197.3,3.08]
[1731013144503,1.2857,197.42,197.36,12.15930138]
[1731013144800,2.5284,197.41,197.35,2.5291]
[1731013144997,2.5284,197.41,197.35,5.02459999]
[1731013145192,1.2857,197.42,197.3,39.81272425]
[1731013145395,1.2857,197.42,197.31,12.15930138]
[1731013145900,2.5288,197.38,197.31,12.15930138]
[1731013146198,41.97615759,197.48,197.36,12.15930138]
[1731013146399,12.15930138,197.49,197.37,3.08]
[1731013147102,2.5283,197.43,197.37,3.08]
[1731013147404,12.15930138,197.49,197.37,3.08]
[1731013147705,12.15930138,197.46,197.37,3.08]
[1731013147901,12.15930138,197.46,197.36,2.53396238]
[1731013148101,3.5639,197.45,197.36,2.53396238]
[1731013149199,12.15930138,197.44,197.35,3.08]
[1731013149710,15.72320138,197.45,197.35,3.08]
[1731013150004,3.5639,197.45,197.36,12.15930138]
[1731013150598,15.72320138,197.45,197.36,12.15930138]
[1731013150798,2.5283,197.42,197.36,14.68830138]
[1731013151006,3.5639,197.45,197.35,3.08]
[1731013151305,2.5289,197.37,197.29,2.5299]
[1731013151607,12.15930138,197.41,197.28,12.15930138]
[1731013151795,2.5289,197.37,197.3,2.5298]
[1731013152408,2.5289,197.37,197.28,12.15930138]
[1731013152603,3.08,197.44,197.21,1.2229]
[1731013152604,2.5295,197.35,197.21,1.2229]
[1731013152803,2.5295,197.35,197.27,12.15930138]
[1731013153004,2.5295,197.35,197.27,15.23930138]
[1731013153600,12.15930138,197.39,197.27,15.23930138]
[1731013153601,2.529,197.39,197.29,12.15930138]
[1731013154009,2.529,197.39,197.32,12.15930138]
[1731013154408,2.5287,197.4,197.32,14.68900138]
[1731013154708,2.5287,197.4,197.35,12.15930138]
[1731013154914,2.5287,197.4,197.33,3.08]
[1731013155510,2.5286,197.42,197.34,2.5294]
[1731013155711,3.08,197.44,197.34,2.5294]
[1731013156308,3.08,197.44,197.33,5.6095]
[1731013156309,2.5287,197.41,197.33,5.6095]
[1731013156705,2.5287,197.41,197.35,12.15930138]
[1731013157407,3.5639,197.45,197.35,12.15930138]
[1731013157608,2.5284,197.42,197.35,12.15930138]
[1731013157910,2.5284,197.42,197.34,2.5294]
[1731013157911,3.5639,197.45,197.38,12.15930138]
[1731013158310,2.5283,197.43,197.38,12.15930138]
[1731013158616,3.5639,197.45,197.39,2.53306868]
[1731013159009,3.5639,197.45,197.38,12.15930138]
[1731013159403,2.3615,197.45,197.39,2.5287]
[1731013159912,2.3615,197.45,197.38,14.74424091]
[1731013160307,2.3615,197.45,197.38,2.58493953]
[1731013160507,2.5283,197.44,197.37,14.68830138]
[1731013161121,2.5283,197.44,197.38,2.55759995]
[1731013162013,2.5283,197.44,197.37,14.68830138]
[1731013162620,2.5283,197.44,197.37,17.20871368]
[1731013162820,2.3615,197.45,197.37,14.67971368]
[1731013163117,2.3615,197.45,197.34,3.08]
[1731013163315,2.3615,197.45,197.2,12.15930138]
[1731013163316,12.15930138,197.43,197.28,37.12588546]
[1731013163517,2.5295,197.35,197.29,2.5301]
[1731013164313,2.5292,197.36,197.3,14.68930138]
[1731013164522,15.23930138,197.44,197.33,12.15930138]
[1731013164918,3.08,197.44,197.33,12.15930138]
[1731013165623,3.08,197.44,197.34,2.5294]
[1731013166822,2.5286,197.42,197.36,2.5292]
[1731013167023,2.3615,197.45,197.34,12.15930138]
[1731013167425,2.5286,197.41,197.35,2.5292]
[1731013168220,12.15930138,197.41,197.28,37.12588546]
[1731013168422,2.5295,197.34,197.26,12.15930138]
[1731013168624,2.5295,197.34,197.22,3.08]
[1731013168625,1.2375,197.4,197.29,12.15930138]
[1731013169322,2.5295,197.35,197.29,14.68940138]
[1731013169521,1.2375,197.4,197.29,12.15930138]
[1731013169929,12.15930138,197.38,197.26,5.6104]
[1731013170119,12.15930138,197.38,197.26,17.76970138]
[1731013170316,12.15930138,197.38,197.26,3.08]
[1731013170317,2.5295,197.34,197.26,3.08]
[1731013170516,2.4319,197.37,197.24,12.15930138]
[1731013170517,12.15930138,197.35,197.24,12.15930138]
[1731013170827,12.15930138,197.35,197.23,12.15930138]
[1731013171728,3.08,197.36,197.26,12.15930138]
[1731013172223,2.5303,197.31,197.26,14.69010138]
[1731013172424,2.5303,197.31,197.26,2.5308]
[1731013173120,3.08,197.36,197.25,12.15930138]
[1731013173121,3.08,197.36,197.25,14.69030138]
[1731013173325,2.5304,197.3,197.25,14.69030138]
[1731013173525,3.08,197.36,197.25,14.68175358]
[1731013174029,2.5303,197.31,197.26,2.5308]
[1731013174519,2.4319,197.37,197.28,14.68980138]
[1731013174724,2.4319,197.37,197.28,12.15930138]
[1731013175623,2.4319,197.37,197.27,2.57864733]
[1731013175925,2.53,197.33,197.28,2.5305]
[1731013176827,14.59120138,197.37,197.21,57.91576291]
[1731013177025,14.59120138,197.37,197.24,12.15930138]
[1731013177525,2.5303,197.31,197.26,2.5309]
[1731013178125,2.5303,197.31,197.25,2.5309]
[1731013179121,2.5303,197.31,197.26,2.5308]
[1731013179828,2.5303,197.31,197.24,12.15930138]
[1731013180028,2.5303,197.31,197.25,2.531]
[1731013180332,2.5303,197.31,197.24,12.15930138]
[1731013180536,2.5303,197.31,197.26,2.5309]
[1731013181220,2.5296,197.36,197.3,2.5302]
[1731013181424,2.5296,197.36,197.31,14.66947744]
[1731013181626,1.2375,197.4,197.31,12.15930138]
[1731013181823,2.5293,197.38,197.33,2.53]
[1731013182230,1.2375,197.4,197.31,14.66719914]
[1731013183422,1.2375,197.4,197.32,2.53]
[1731013183423,2.5295,197.37,197.32,2.53]
[1731013183628,2.4367,197.42,197.34,12.15930138]
[1731013184023,2.5292,197.39,197.34,14.65757611]
[1731013184228,2.4367,197.42,197.34,12.15930138]
[1731013184428,2.5293,197.38,197.32,5.12394365]
[1731013184629,14.59600138,197.42,197.32,5.12394365]
[1731013185527,2.5298,197.35,197.3,2.5303]
[1731013185834,2.5298,197.35,197.28,14.63760138]
[1731013186232,2.5298,197.35,197.31,2.5301]
[1731013186425,2.5298,197.35,197.31,4.99888808]
[1731013186825,2.5298,197.35,197.31,2.46878808]
[1731013187029,2.5298,197.35,197.28,17.77760138]
[1731013187237,2.5298,197.35,197.3,2.5303]
[1731013187442,2.5298,197.35,197.31,2.50726007]
[1731013187735,2.5295,197.37,197.28,17.77760138]
[1731013187938,12.15930138,197.41,197.32,2.53]
[1731013188241,12.15930138,197.41,197.32,5.09420874]
[1731013188434,2.4367,197.42,197.32,2.56420874]
[1731013188739,2.4367,197.42,197.34,2.5297]
[1731013188934,2.4367,197.42,197.34,5.11744752]
[1731013189136,2.5294,197.37,197.33,2.5299]
[1731013189437,12.15930138,197.4,197.32,2.56027587]
[1731013189639,12.15930138,197.4,197.29,12.15930138]
[1731013189838,12.15930138,197.4,197.31,2.5301]
[1731013190141,2.5295,197.37,197.32,2.53016093]
[1731013190331,2.5295,197.37,197.32,5.06016093]
[1731013190529,12.15930138,197.4,197.29,12.15930138]
[1731013190734,2.5297,197.35,197.29,12.15930138]
[1731013190937,12.15930138,197.4,197.29,12.15930138]
[1731013191340,2.5298,197.35,197.3,2.5302]
[1731013191635,2.5298,197.35,197.29,12.15930138]
[1731013191843,2.5298,197.34,197.29,14.68960138]
[1731013193337,2.5298,197.34,197.29,12.15930138]
[1731013193843,2.5298,197.34,197.28,3.14]
[1731013194535,14.59600138,197.42,197.29,12.15930138]
[1731013194752,14.59600138,197.42,197.32,12.15930138]
[1731013195559,14.59600138,197.42,197.32,14.72819207]
[1731013195757,2.5293,197.38,197.28,15.18]
[1731013195951,12.15930138,197.34,197.22,12.15930138]
[1731013196657,12.15930138,197.34,197.22,14.7275598]
[1731013196852,2.5303,197.31,197.22,14.7275598]
[1731013197255,2.5303,197.31,197.22,2.56825842]
[1731013197456,2.5303,197.31,197.21,14.69070138]
[1731013197657,2.5303,197.31,197.21,12.15930138]
[1731013197958,2.5303,197.31,197.22,2.5313]
[1731013198359,2.5304,197.3,197.21,14.70705828]
[1731013198556,12.15930138,197.23,196.97,20.91616428]
[1731013198756,12.15930138,197.23,196.86,36.48]
[1731013198757,2.5315,197.21,197.11,12.15930138]
[1731013198957,2.5315,197.21,197.09,2.5329]
[1731013199262,12.15930138,197.23,197.12,12.15930138]
[1731013199468,2.5311,197.24,197.12,12.15930138]
[1731013199655,12.15930138,197.25,197.14,12.15930138]
[1731013199957,13.43330138,197.28,197.14,12.15930138]
[1731013200457,13.43330138,197.28,197.17,12.15930138]
[1731013200763,2.5027,197.33,197.23,12.15930138]
[1731013201060,12.15930138,197.32,197.2,12.15930138]
[1731013201959,1.2154,197.31,197.2,12.15930138]
[1731013202660,1.2154,197.31,197.22,12.15930138]
[1731013202863,2.5027,197.33,197.22,12.15930138]
[1731013203063,16.71930138,197.37,197.25,12.15930138]
[1731013203565,2.5297,197.35,197.25,12.15930138]
[1731013203766,1.2121,197.38,197.25,14.71543223]
[1731013203767,13.37140138,197.38,197.25,14.71543223]
[1731013204854,2.5297,197.36,197.25,17.24633223]
[1731013205760,2.5298,197.35,197.25,14.71543223]
[1731013206767,2.5295,197.37,197.28,12.15930138]
[1731013206964,13.37140138,197.38,197.28,12.15930138]
[1731013207563,1.2121,197.38,197.28,12.15930138]
[1731013207771,2.5295,197.37,197.28,12.15930138]
[1731013208264,2.5291,197.4,197.34,12.15930138]
[1731013209168,12.15930138,197.44,197.34,12.15930138]
[1731013209372,2.5288,197.42,197.34,12.15930138]
[1731013209667,12.15930138,197.49,197.39,12.15930138]
[1731013209877,2.5284,197.45,197.39,12.15930138]
[1731013210473,12.15930138,197.49,197.39,12.15930138]
[1731013210672,2.5282,197.47,197.39,12.15930138]
[1731013211872,2.528,197.49,197.42,12.15930138]
[1731013212070,6.44473729,197.52,197.42,12.15930138]
[1731013212268,0.75831324,197.51,197.44,12.15930138]
[1731013212571,3.7242,197.53,197.44,12.15930138]
[1731013212869,0.75830968,197.52,197.44,12.15930138]
[1731013213076,2.5277,197.51,197.44,12.15930138]
[1731013213276,6.44548332,197.56,197.44,12.15930138]
[1731013213479,12.15930138,197.57,197.44,12.15930138]
[1731013213872,18.6047847,197.57,197.44,12.15930138]
[1731013214072,12.15930138,197.57,197.44,12.15930138]
[1731013214369,2.5275,197.53,197.44,14.68780138]
[1731013214580,12.15930138,197.57,197.44,14.68780138]
[1731013214874,12.15930138,197.54,197.44,12.15930138]
[1731013215076,12.15930138,197.54,197.42,12.15930138]
[1731013215271,2.5281,197.48,197.42,12.15930138]
[1731013216674,12.15930138,197.52,197.42,12.15930138]
[1731013216974,12.15930138,197.52,197.39,14.60730138]
[1731013217178,12.15930138,197.52,197.39,12.15930138]
[1731013217479,12.15930138,197.49,197.38,4.56]
[1731013217785,12.15930138,197.47,197.37,12.15930138]
[1731013217981,12.15930138,197.47,197.3,3.6119]
[1731013217982,12.15930138,197.44,197.34,12.15930138]
[1731013218482,2.5292,197.39,197.34,12.15930138]
[1731013218876,2.5292,197.39,197.32,12.15930138]
[1731013219274,2.5293,197.38,197.32,12.15930138]
[1731013219473,6.44063825,197.45,197.15,5.2898257]
[1731013219474,16.71930138,197.39,197.15,5.2898257]
[1731013219674,2.4485,197.38,197.25,12.15930138]
[1731013219974,2.4485,197.38,197.26,2.5308]
[1731013220175,2.4485,197.38,197.25,12.15930138]
[1731013220680,2.5301,197.32,197.25,12.15930138]
[1731013221278,2.4485,197.38,197.2,2.4001]
[1731013221480,19.44436404,197.36,197.2,2.4001]
[1731013221785,1.2459,197.35,197.21,2.5313]
[1731013222076,1.2459,197.35,197.2,2.4001]
[1731013222077,1.2459,197.35,197.22,19.44436404]
[1731013222878,2.5304,197.29,197.23,2.5312]
[1731013223681,2.5304,197.29,197.22,19.44436404]
[1731013223883,2.5304,197.29,197.22,21.97566404]
[1731013224381,2.5304,197.29,197.22,19.44436404]
[1731013224583,2.5302,197.31,197.24,2.5311]
[1731013225380,1.2459,197.35,197.22,19.44436404]
[1731013225682,19.44436404,197.33,197.2,1.2294]
[1731013226087,2.5307,197.27,197.2,1.2294]
[1731013226279,19.44436404,197.33,197.2,1.2294]
[1731013226881,2.5307,197.27,197.21,2.5314]